Cogmind - Beta 14 @@@ ROGUE MODE // 2024.12.19 @ 11:47:24 Player: Julie Result: Self-destructed Performance ------------- Evolutions (1) 500 Regions Visited (3) 600 Robots Destroyed (11) 55 Value Destroyed (351) 351 Prototype IDs (0) 0 Alien Tech Used (0) 0 Bonus (0) 0 TOTAL SCORE: 1506 Bonus ------- None Cogmind --------- Core Integrity 230/400 Matter 41/300 Energy 60/100 System Corruption 13% Temperature Cool (0) Movement Core (350) Ox6 Location -9/Mines Parts ------- > --- POWER (1) -------- (None) > --- PROPULSION (3) --- (None) > --- UTILITY (3) ------ Large Storage Unit > --- WEAPON (2) ------- (None) > --- INVENTORY (15) --- Light Treads Small Storage Unit Visual Processing Unit Sensor Array Terrain Scan Processor ECM Suite Utility Shielding Light Armor Plating Beam Cannon Assault Rifle Light Assault Rifle Grenade Launcher Rocket Launcher Rocket Launcher Peak State ------------ > --- POWER ------------ Light Ion Engine > --- PROPULSION ------- Light Treads Light Treads Aluminum Leg > --- UTILITY ---------- Large Storage Unit Signal Interpreter Terrain Scan Processor > --- WEAPON ----------- Autogun Rocket Launcher > --- INVENTORY -------- Aluminum Leg Small Storage Unit Visual Processing Unit Sensor Array Terrain Scan Processor ECM Suite Utility Shielding Beam Cannon Assault Rifle Light Assault Rifle Grenade Launcher Grenade Launcher Grenade Launcher [Rating: 13] Favorites ----------- Power Light Ion Engine Engine Light Ion Engine Propulsion Light Treads Treads Light Treads Leg Aluminum Leg Utility Large Storage Unit Storage Large Storage Unit Processor Signal Interpreter Weapon Light Assault Rifle Ballistic Gun Light Assault Rifle Launcher Grenade Launcher Build | -11 -10 -9 -9 ------- Run | Yrd Mat Mat Min Slots Evolved 2 | . . 2 . Power . | . . . . Propulsion 1 | . . 1 . Utility 1 | . . 1 . Weapon . | . . . . Parts Attached 24 | 6 7 9 2 Power 1 | 1 . . . Engine 1 | 1 . . . Core . | . . . . Reactor . | . . . . Propulsion 9 | 2 2 5 . Treads 5 | . . 5 . Leg 4 | 2 2 . . Wheel . | . . . . Hover . | . . . . Flight . | . . . . Utility 5 | 1 3 1 . Device . | . . . . Storage 3 | 1 2 . . Processor 2 | . 1 1 . Hackware . | . . . . Protection . | . . . . Artifact . | . . . . Weapon 9 | 2 2 3 2 Energy Gun . | . . . . Energy Cannon . | . . . . Ballistic Gun 4 | 2 . 1 1 Ballistic Cannon . | . . . . Launcher 5 | . 2 2 1 Special Weapon . | . . . . Impact Weapon . | . . . . Slashing Weapon . | . . . . Piercing Weapon . | . . . . Special Melee Weapon . | . . . . Unidentified Prototypes . | . . . . Parts Lost 9 | . 1 . 8 Power 1 | . . . 1 Propulsion 3 | . . . 3 Utility 2 | . . . 2 Weapon 3 | . 1 . 2 Highest Loss Streak 6 | . 1 . 6 To Critical Strikes . | . . . . Average Slot Usage (%) 95 | . 98 97 89 Engine 11 | . 14 11 9 Treads 17 | . . 26 30 Leg 12 | . 26 6 . Storage 16 | . 24 11 11 Processor 12 | . 3 20 16 Ballistic Gun 12 | . 14 11 11 Launcher 11 | . 14 11 9 Peak Build Rating 13 | 6 8 13 13 Average Rating 9 | 4 7 12 11 On Entrance 6 | . 6 8 13 Naked Turns . | . . . . Heaviest Build 30 | 11 28 30 30 Greatest Support 60 | 20 20 60 60 Greatest Overweight (x) 9 | 3 9 . 7 Average Overweight (x) . | . . . . Largest Inventory Capacity 15 | 8 15 15 15 Average Capacity 14 | 6 13 15 15 Most Carried 15 | 2 12 15 14 Average Carried 10 | 1 8 12 13 Final Capacity 15 | 8 15 15 15 Final Carried 14 | 2 11 13 14 Class Distribution -------------------- 100% | Mutant Dominant Class ---------------- Mutant | -10/Materials Mutant | -9/Materials Mutant | -9/Mines Resources | -11 -10 -9 -9 ----------- Run | Yrd Mat Mat Min Matter Collected 400 | 198 94 50 58 Remotely . | . . . . Salvage Created 279 | . 163 108 8 Parts 24 | . 15 9 . Haulers Intercepted . | . . . . Recyclers Shooed . | . . . . Parts Field Recycled . | . . . . Retrieved Matter . | . . . . Parts Self-Destructed . | . . . . Prevented . | . . . . Kills | -11 -10 -9 -9 ------- Run | Yrd Mat Mat Min Combat Hostiles Destroyed 12 | . 4 4 4 Guns 2 | . 1 . 1 AOE 10 | . 3 4 3 Classes Destroyed 7 | . 5 1 1 Recycler 1 | . 1 . . Operator 1 | . 1 . . Watcher 1 | . 1 . . Swarmer 3 | . 3 . . Grunt 2 | . 1 1 . Sentry 3 | . . 3 . Assembled 4 | . . . 4 Best Kill Streak 3 | . 3 2 2 Combat Bots Only 3 | . 3 2 2 Max Kills in Single Turn 3 | . 3 1 1 Gunslinging . | . . . . Exploded 3 | . 3 1 1 Melee . | . . . . Uniques/NPCs Destroyed . | . . . . Combat | -11 -10 -9 -9 -------- Run | Yrd Mat Mat Min Hostile Shots Fired 101 | . 15 8 78 Missed 29 | . 4 2 23 Damage Taken 1360 | . 204 150 1006 Core 180 | . 10 . 170 Absorbed by Shields . | . . . . Core Remaining (%) 98 | 100 96 . . Volleys Fired 31 | . 12 6 13 Largest 2 | . 2 2 2 Hottest 56 | . 50 56 56 Shots Fired 55 | . 18 12 25 Gun 36 | . 12 6 18 Cannon . | . . . . Launcher 19 | . 6 6 7 Special . | . . . . Kinetic 36 | . 12 6 18 Thermal . | . . . . Explosive 19 | . 6 6 7 Electromagnetic . | . . . . Robot Hit Streak 3 | . 3 3 2 Robot Miss Streak 3 | . 2 2 3 Penetration Max . | . . . . Secondary Targets . | . . . . Shots Hit Robots 20 | . 8 7 5 Core Hits 33 | . 10 9 14 Critical Kills . | . . . . Critical Parts Destroyed 1 | . . 1 . Critical Strikes 1 | . . 1 . Destroy 1 | . . 1 . Melee Attacks . | . . . . Impact . | . . . . Slashing . | . . . . Piercing . | . . . . Sneak Attacks . | . . . . Combat Hostiles . | . . . . Follow-up Attacks . | . . . . Damage Inflicted 1096 | . 267 334 495 Guns 159 | . 31 66 62 Cannons . | . . . . Explosions 923 | . 236 268 419 Melee . | . . . . Ramming 14 | . . . 14 Kinetic 159 | . 31 66 62 Thermal 82 | . . . 82 Explosive 841 | . 236 268 337 Electromagnetic . | . . . . Impact . | . . . . Slashing . | . . . . Piercing . | . . . . Highest Corruption 13 | . . . 13 Average Corruption 6 | . . . 6 Corruption Purged . | . . . . Corruption Blocked . | . . . . Effects 3 | . . . 3 Message Errors 2 | . . . 2 Energy Discharges 1 | . . . 1 Overload Shots . | . . . . Overflow Damage 8 | . . . 8 Projectiles . | . . . . Explosions 8 | . . . 8 Melee . | . . . . Knockbacks . | . . . . Impact . | . . . . Kinetic . | . . . . Secondary . | . . . . Self-Inflicted Damage 212 | . 111 57 44 Shots 6 | . 4 1 1 Rammed 8 | . . . 8 Targets Rammed 8 | . . . 8 Kicked . | . . . . Crushed . | . . . . Highest Temperature 20 | . 10 19 20 Average Temperature 9 | . 7 10 10 Received Heat Transfer 56 | . . 36 20 Siege Activations . | . . . . Robots Corrupted . | . . . . Combat Hostiles . | . . . . Parts Fried . | . . . . Impact Corruptions . | . . . . Robots Melted . | . . . . Combat Hostiles . | . . . . Parts Melted . | . . . . Heat Transferred 100 | . . . 100 Parts Sabotaged . | . . . . Parts Stolen . | . . . . Parts Stripped . | . . . . Power Chain Reactions . | . . . . Alert | -11 -10 -9 -9 ------- Run | Yrd Mat Mat Min Peak Influence 265 | . 196 265 125 Initial 103 | . . 31 103 Average 111 | . 88 181 103 Maximum Alert Level 1 | . . 1 . Low Security (%) 88 | 100 100 51 100 Level 1 11 | . . 48 . Level 2 . | . . . . Level 3 . | . . . . Level 4 . | . . . . Level 5 . | . . . . High Security . | . . . . Max Security . | . . . . Squads Dispatched . | . . . . Investigation . | . . . . Extermination . | . . . . Reinforcement . | . . . . Assault . | . . . . Garrison . | . . . . Intercept . | . . . . Searches Triggered . | . . . . Construction Impeded . | . . . . Haulers Reinforced . | . . . . Active Scanning Responses . | . . . . Cargo Convoy Interrupts . | . . . . Stealth | -11 -10 -9 -9 --------- Run | Yrd Mat Mat Min Distress Signals . | . . . . Communications Jammed . | . . . . Distress Signals . | . . . . Times Spotted 21 | . 7 4 10 Peak Tracking Total 6 | . 3 2 6 Tactical Retreats 1 | . . . 1 Traps | -11 -10 -9 -9 ------- Run | Yrd Mat Mat Min Traps Triggered 1 | . 1 . . Indirectly . | . . . . Trap Hack Attempts . | . . . . Triggered . | . . . . Disarmed . | . . . . Reprogrammed . | . . . . Reused . | . . . . Traps Extracted . | . . . . Installed . | . . . . Triggered . | . . . . Machines | -11 -10 -9 -9 ---------- Run | Yrd Mat Mat Min Machines Disabled 8 | . 5 2 1 Max in Single Turn 3 | . 3 1 1 Machines Repaired . | . . . . Machines Dismantled . | . . . . Machines Sabotaged . | . . . . Overloaded Fab Kills . | . . . . Hacking | -11 -10 -9 -9 --------- Run | Yrd Mat Mat Min Machines Accessed 4 | . 2 2 . Terminals 4 | . 2 2 . Fabricators . | . . . . Repair Stations . | . . . . Recycling Units . | . . . . Scanalyzers . | . . . . Garrison Access . | . . . . Total Hacks 5 | . 2 3 . Successful 4 | . 1 3 . Failed 1 | . 1 . . Catastrophic . | . . . . Database Lockouts . | . . . . Manual 1 | . . 1 . Terminals 5 | . 2 3 . Fabricators . | . . . . Repair Stations . | . . . . Recycling Units . | . . . . Scanalyzers . | . . . . Garrison Access . | . . . . Terminal Hacks 4 | . 1 3 . Investigation Status 1 | . . 1 . Reinforcement Status 1 | . . 1 . Zone Layout 2 | . 1 1 . Fabricator Hacks . | . . . . Repair Station Hacks . | . . . . Recycling Unit Hacks . | . . . . Scanalyzer . | . . . . Garrison Access Hacks . | . . . . Unauthorized Hacks . | . . . . Terminals . | . . . . Fabricators . | . . . . Repair Stations . | . . . . Recycling Units . | . . . . Scanalyzers . | . . . . Garrison Access . | . . . . Data Cores Recovered . | . . . . Used . | . . . . Hacking Detections . | . . . . Full Trace Events . | . . . . Feedback Events . | . . . . Feedback Blocked . | . . . . Robot Schematics Acquired . | . . . . Robots Built . | . . . . Authchips . | . . . . Time . | . . . . Total Robot Build Rating . | . . . . Part Schematics Acquired . | . . . . Parts Built . | . . . . Authchips . | . . . . Time . | . . . . Total Part Build Rating . | . . . . Parts Repaired . | . . . . Time . | . . . . Parts Recycled . | . . . . Recycled Matter . | . . . . Retrieved Matter . | . . . . Retrieved Components . | . . . . Parts Scanalyzed . | . . . . Part Schematics Acquired . | . . . . Parts Damaged . | . . . . Bothacking | -11 -10 -9 -9 ------------ Run | Yrd Mat Mat Min Used RIF Installer . | . . . . Robots Hacked . | . . . . Non-combat . | . . . . Combat . | . . . . Robot Hacks Applied . | . . . . Relay Couplers Released . | . . . . Fabnet Peak Effective % . | . . . . Robots Rewired . | . . . . Allies Hacked . | . . . . Hacks Repelled . | . . . . Allies | -11 -10 -9 -9 -------- Run | Yrd Mat Mat Min Total Allies . | . . . . Largest Group . | . . . . Highest-Rated Group . | . . . . Highest-Rated Ally . | . . . . Total Orders . | . . . . Ally Attacks . | . . . . Total Damage . | . . . . Kills . | . . . . Allies Corrupted . | . . . . Allies Melted . | . . . . Intel | -11 -10 -9 -9 ------- Run | Yrd Mat Mat Min Robot Analysis Total . | . . . . Derelict Logs Recovered 1 | . . . 1 Drone Launches . | . . . . Drone Recoveries . | . . . . Exploration | -11 -10 -9 -9 ------------- Run | Yrd Mat Mat Min Turns Passed 1233 | 61 478 298 396 Spaces Moved 663 | 50 247 164 202 Core 28 | 22 2 . 4 Treads 362 | . . 164 198 Legs 273 | 28 245 . . Wheels . | . . . . Hover . | . . . . Flight . | . . . . Fastest Speed 50 | 50 120 160 160 Average Speed 162 | 99 174 160 164 Slowest Speed 500 | 200 500 160 400 Overloaded Moves . | . . . . Propulsion Burnouts . | . . . . Robots Hopped . | . . . . Cave-ins Triggered . | . . . . Exploration Rate (%) 27 | 4 48 19 39 Regions Visited 3 Branch Regions 1 Pre-discovered Areas . | . . . . Known Exits Taken 2 | . 1 1 . Unknown Exits Taken 1 | 1 . . . Scrap Searched 1 | . . . 1 Spaces Dug . | . . . . Terrain Destroyed 188 | . 50 73 65 Melee . | . . . . Projectile . | . . . . AOE 188 | . 50 73 65 Terrain Rammed . | . . . . Walls Destroyed . | . . . . Machines Disabled . | . . . . Actions | -11 -10 -9 -9 --------- Run | Yrd Mat Mat Min Total 759 | 58 275 187 239 Wait 15 | 1 1 . 13 Move 660 | 49 246 163 202 Hop . | . . . . Pick Up 16 | 2 9 4 1 Fast Attach 10 | 6 3 1 . Attach 2 | . 1 1 . Detach . | . . . . Swap 12 | . 3 7 2 Drop 5 | . . 5 . Fire 31 | . 12 6 13 Melee . | . . . . Ram . | . . . . Kick . | . . . . Crush 8 | . . . 8 Escape Stasis . | . . . . Rewire . | . . . . Trap . | . . . . Miscellaneous . | . . . . Route ------- -11/Scrapyard -10/Materials (discovered 3 exits: *Mat x2 / [Min]) -9/Materials -9/Mines (discovered 1 exit: *Mat) History --------- Turn | Location | Event 3 | -11/Scrapyard | Discovered new exit (range 16) 62 | -11/Scrapyard | Entered Materials 112 | -10/Materials | Discovered new exit (range 15) 112 | -10/Materials | Discovered new exit (range 20) 301 | -10/Materials | Build established: Mutant 405 | -10/Materials | Discovered new exit (range 5) 433 | -10/Materials | Identified exit to Materials 540 | -10/Materials | Entered another Materials area 540 | -9/Materials | Evolved 2 slots: Propulsion x1, Utility x1 785 | -9/Materials | Discovered new exit (range 8) 794 | -9/Materials | Identified exit to Mines 838 | -9/Materials | Entered Mines 869 | -9/Mines | Discovered new exit (range 7) 877 | -9/Mines | Identified exit to Materials 1081 | -9/Mines | Received a Rocket Launcher from a helpful Derelict 1101 | -9/Mines | Assembled infested the area 1219 | -9/Mines | System corruption reached 10% 1234 | -9/Mines | Self-destructed Last Messages --------------- 01170_ Slammed into as-75209. 01182_ U-05 Engineer destroyed. 01192_ 5QR/4Z2QJT4TG4DL>GM5K 01195_ Lgt. Treads destroyed. 01197_ Autogun destroyed. 01197_ Lgt. Ion Engine destroyed. 01197_ System corrupted by crushing effect (+5). 01206_ Plasma Injector explodes. 01206_ as-00947 destroyed. 01208_ Slammed into as-75209. 01215_ XX,OO/TD,ZP:2K BZBMC,MIELUKMAN: 01215_ Slammed into as-75209. 01218_ Lgt. Treads destroyed. 01218_ System corrupted by crushing effect (+2). 01226_ Rocket Launcher destroyed. 01229_ Knocked back. 01232_ as-75209 sneak attacks. 01232_ K-01 Serf destroyed. 01234_ System corrupted: Energy discharge (-40). Map ----- +----------------------------------------------------+ | ???? ## #???????####?????????????? | | ???? ######## ##????????????? | | ????? ## #?????####???? | | ?????????# #????## ##??? | | ?????????????# #?????# #??? | | ?????????????## ##?????# #??? | | ????????####### #??????# #???? | | ???????## ## #??????## ##??? | | ??????## #??????## #??? | | ?????## ##?????## #??? | | ????## #### ##?????## #??? | | ????# ##??# ######## ##??? | | ????# #???# < ##???? | | ????## ##??# ##????? | | ?????## ##?###### ########?????? | | ??????## #??????# #????????????? | | ???????## #??????# #????????????? | | ????????# ##?????# #????#######?? | | ????????# ##????# ###### #?? | | ????????# ###### #?? | | ????????## ######### #?? | | ?????????## #??????# #?? | | ??????????## k ##?????# #?? | | ???????????## ####### #?? | | ????????????## ## #?? | | ?????????????### @ ########?? | | ???????????????## ##u #????????? | | ????????????????## ### #????????? | | ?????????????????## ##?# a#????????? | | ??????????????????####??#%!#????????? | | ????????????????????????#= #??####??? | | ????????????????????????# #?# ##?? | | ????????????????????????# ## #?? | | ?????????????????????#### # #?? | | ??????????????######## #??? | | ?????????????## #????? | | ?????????????# ###????? | | ?????????????## ## ##??????? | | ??????????????#???# ;#???????? | | ?????????????????## a ;#???????? | | ?????????????????# #???????? | | ?????????????????# ##?###??? | | ?????????????????## ## ##?? | | ??????????????????## #?? | | ???????????????????## #?? | | ???????## ??????????## ##?? | | ??????## #####????# ## #??? | | ??????# # #####%!## # ##?? | | ??????# #| ## # #?? | | ???#### ## ## #?? | +----------------------------------------------------+ Best States ------------- Heat Dissipation 28 Energy Generation 10 Energy Capacity 125 Matter Stores 238 Matter Capacity 350 Sight Range 16 Terrain Scan Density 85 Evasion (%) 55 Recoil Reduction 3 Item Schematics ----------------- None Robot Schematics ------------------ None Fabricated ------------ Nothing Alien Tech Used ----------------- None Achievements -------------- None Challenges ------------ None Game ------ Seed TechSiegeDeflector Manual? 0 Play Time 00:11:36 Cumulative 23.0 hours Start 2024.12.19 @ 11:37:46 End 2024.12.19 @ 11:47:24 Sessions 1 Manual Loads 0 Difficulty Rogue Special Mode None Game No. 70 Rogue 70 Adventurer 0 Explorer 0 Win Type - Total 0 Types 0/0/0/0/0/0/0/0/0 Lore% 11 Gallery% 25 Achievement% 21 Wizard Run 0 Options --------- Layout 2 ASCII 0 Keyboard 1 Movement Numpad Keybinds 1 Fullscreen 2 Font 24/Smallcaps Map View 50x44 Zoom Use 12% Tactical HUD 1 Map Filters NONE Filters NONE Steam 1 RUN: 973fcb2e-b9da-492a-99e1-72460e205bcb